bitfinex-derivatives/quotes_BTCF0:USTF0_20250718
["timestamp","ask_amount","ask_price","bid_price","bid_amount"]
[1752836885707,0.85740774,119190.0,119180.0,0.01708851]
[1752836885901,1.28518687,119190.0,119180.0,0.01708851]
[1752836886608,1.22481756,119190.0,119180.0,0.01708851]
[1752836887106,1.22581756,119190.0,119180.0,0.01708851]
[1752836888205,0.3702593,119190.0,119180.0,0.01708851]
[1752836888807,1.30118733,119190.0,119180.0,0.01708851]
[1752836889107,0.1985833,119180.0,119170.0,0.31260474]
[1752836889401,1.31999444,119180.0,119170.0,0.03185728]
[1752836889607,1.31999444,119180.0,119170.0,0.45963641]
[1752836890107,1.31999444,119180.0,119170.0,0.03185728]
[1752836890609,1.31999444,119180.0,119170.0,0.01684728]
[1752836891907,0.89221531,119180.0,119170.0,0.01684728]
[1752836892209,1.31999444,119180.0,119170.0,0.01684728]
[1752836893510,1.25965243,119180.0,119170.0,0.01684728]
[1752836895907,0.2573156,119150.0,119140.0,0.05685969]
[1752836896214,0.68509473,119150.0,119140.0,0.2021897]
[1752836896408,0.68509473,119150.0,119140.0,0.62996883]
[1752836896704,0.8319156,119150.0,119140.0,0.2021897]
[1752836896904,1.25969473,119150.0,119140.0,0.63296883]
[1752836897611,1.25969473,119150.0,119140.0,0.63696883]
[1752836898013,1.25969473,119150.0,119140.0,0.2091897]
[1752836898214,1.25969473,119150.0,119140.0,0.63696883]
[1752836899213,1.25969473,119150.0,119140.0,0.63596883]
[1752836899813,1.25969473,119150.0,119140.0,0.2081897]
[1752836900114,1.25969473,119150.0,119140.0,0.63596883]
[1752836900515,1.26803362,119150.0,119140.0,0.63596883]
[1752836901816,1.26803362,119150.0,119140.0,0.2081897]
[1752836902014,1.26803362,119150.0,119140.0,0.63596883]
[1752836902315,1.26803362,119150.0,119140.0,0.2081897]
[1752836902512,1.28684541,119150.0,119140.0,0.1737794]
[1752836903014,1.28684541,119150.0,119140.0,0.006]
[1752836907519,1.28684541,119150.0,119140.0,0.1737794]
[1752836908018,1.28684541,119150.0,119140.0,0.006]
[1752836908219,0.85906628,119150.0,119140.0,0.006]
[1752836908421,1.28684541,119150.0,119140.0,0.006]
[1752836910820,0.2514393,119140.0,119130.0,0.67309793]
[1752836911023,0.68717843,119140.0,119130.0,0.67309793]
[1752836911224,0.2593993,119140.0,119130.0,0.67309793]
[1752836911424,0.2593993,119140.0,119130.0,0.2453188]
[1752836911629,0.68717843,119140.0,119130.0,0.65649793]
[1752836911928,0.68717843,119140.0,119130.0,0.65379793]
[1752836912127,1.11495756,119140.0,119130.0,0.001]
[1752836912629,0.2593993,119140.0,119130.0,0.001]
[1752836912821,0.2593993,119140.0,119130.0,0.61555253]
[1752836913026,0.2593993,119140.0,119130.0,0.68715253]
[1752836913435,0.68717843,119140.0,119130.0,0.2593734]
[1752836913625,0.68717843,119140.0,119130.0,0.68715253]
[1752836914327,0.2593993,119140.0,119130.0,0.68715253]
[1752836914526,0.68717843,119140.0,119130.0,0.68715253]
[1752836914726,0.2593993,119140.0,119130.0,0.68715253]
[1752836914936,0.68717843,119140.0,119130.0,0.68715253]
[1752836915135,0.2593993,119140.0,119130.0,0.68715253]
[1752836915434,0.68717843,119140.0,119130.0,0.68715253]
[1752836916234,0.2593993,119140.0,119130.0,0.68715253]
[1752836916436,0.68717843,119140.0,119130.0,0.68715253]
[1752836919037,0.2593993,119140.0,119130.0,0.68715253]
[1752836919539,0.68717843,119140.0,119130.0,0.68715253]
[1752836920234,0.68717843,119140.0,119130.0,0.2593734]
[1752836920430,0.68717843,119140.0,119130.0,0.68715253]
[1752836921233,0.2593993,119140.0,119130.0,0.68715253]
[1752836921439,0.05566,119140.0,119130.0,1.11493166]
[1752836921635,0.2154793,119140.0,119130.0,1.11493166]
[1752836922037,0.2593993,119140.0,119130.0,1.11493166]
[1752836923339,0.2593993,119140.0,119130.0,0.68715253]
[1752836923936,0.2593993,119140.0,119130.0,0.70960222]
[1752836924243,0.2593993,119140.0,119130.0,0.28182309]
[1752836924544,0.2593993,119140.0,119130.0,0.70960222]
[1752836927044,0.2593993,119140.0,119130.0,0.28182309]
[1752836927243,0.2593993,119140.0,119130.0,0.70960222]
[1752836927743,0.2593993,119140.0,119130.0,1.13738135]
[1752836928242,0.2593993,119140.0,119130.0,1.11493166]
[1752836928740,0.1677793,119140.0,119130.0,1.11493166]
[1752836929645,0.2593993,119140.0,119130.0,1.13738135]
[1752836930145,0.2593993,119140.0,119130.0,0.70960222]
[1752836934747,0.2593993,119140.0,119130.0,1.13738135]
[1752836935449,0.2234393,119140.0,119130.0,1.13738135]
[1752836935649,0.2154793,119140.0,119130.0,1.13738135]
[1752836935849,0.1677793,119140.0,119130.0,1.13738135]
[1752836936041,0.33577681,119170.0,119160.0,0.2478211]
[1752836936242,0.2754348,119170.0,119160.0,1.67809936]
[1752836936646,0.2998048,119170.0,119160.0,1.25032023]
[1752836936949,0.2998048,119170.0,119160.0,1.20285812]
[1752836937150,0.2998048,119170.0,119160.0,0.8225411]
[1752836937349,0.3018048,119170.0,119160.0,1.20285812]
[1752836937549,0.3048048,119170.0,119160.0,1.20285812]
[1752836938053,0.3048048,119170.0,119160.0,0.2478211]
[1752836938247,0.3048048,119170.0,119160.0,0.8225014]
[1752836939152,0.3048048,119170.0,119160.0,0.8225012]
[1752836939353,0.3048048,119170.0,119160.0,0.65475]
[1752836939652,0.3048048,119170.0,119160.0,0.8225012]
[1752836942650,0.3048048,119170.0,119160.0,0.60717]
[1752836942855,0.2578713,119160.0,119150.0,0.93388853]
[1752836944056,0.2578713,119160.0,119150.0,1.31420555]
[1752836944756,0.2598713,119160.0,119150.0,0.93388853]
[1752836945261,0.2608713,119160.0,119150.0,0.93388853]
[1752836945967,0.2608713,119160.0,119150.0,0.89194963]
[1752836952967,0.2608713,119160.0,119150.0,1.27226665]
[1752836953263,0.2264813,119160.0,119150.0,1.27226665]
[1752836953663,0.2264813,119160.0,119150.0,1.29476052]
[1752836955370,0.2264813,119160.0,119150.0,0.9144435]
[1752836955560,0.2264813,119160.0,119150.0,1.29476052]
[1752836956566,0.003,119160.0,119150.0,1.29476052]
[1752836957565,0.1707512,119160.0,119150.0,1.29476052]
[1752836958067,0.1707512,119160.0,119150.0,1.27226665]
[1752836959665,0.003,119160.0,119150.0,1.27226665]
[1752836960269,0.1707512,119160.0,119150.0,1.27226665]
[1752836963270,0.1782312,119160.0,119150.0,1.29476052]
[1752836964370,0.2264412,119160.0,119150.0,1.29476052]
[1752836964971,0.2461812,119160.0,119150.0,1.34238555]
[1752836965274,0.2620512,119160.0,119150.0,1.34238555]
[1752836967070,0.2620512,119160.0,119150.0,1.2948401]
[1752836967472,0.2620512,119160.0,119150.0,0.9144435]
[1752836970178,0.2620512,119160.0,119150.0,0.6571662]
[1752836970479,0.2620512,119160.0,119150.0,0.8249315]
[1752836971576,0.2620512,119160.0,119150.0,0.8729115]
[1752836972375,0.2620512,119160.0,119150.0,1.2533081]
[1752836973475,0.2620512,119160.0,119150.0,0.8729115]
[1752836973778,0.2620512,119160.0,119150.0,1.23081423]
[1752836975685,0.0943,119160.0,119150.0,1.23081423]
[1752836975985,0.2620512,119160.0,119150.0,1.23081423]
[1752836977279,0.1707512,119160.0,119150.0,1.23081423]
[1752836977991,0.1782312,119160.0,119150.0,1.23081423]
[1752836978489,0.2264412,119160.0,119150.0,1.23081423]
[1752836978885,0.01048,119160.0,119150.0,1.23081423]
[1752836979191,0.003,119160.0,119150.0,1.23081423]
[1752836979990,0.1707512,119160.0,119150.0,1.23081423]
[1752836980485,0.003,119160.0,119150.0,1.23081423]
[1752836981491,0.1707512,119160.0,119150.0,1.23081423]
[1752836982991,0.1782312,119160.0,119150.0,1.23081423]
[1752836983290,0.01048,119160.0,119150.0,1.23081423]
[1752836983692,0.01048,119160.0,119150.0,1.2533081]
[1752836983693,0.1782312,119160.0,119150.0,1.2533081]
[1752836984193,0.01048,119160.0,119150.0,1.2533081]
[1752836984593,0.003,119160.0,119150.0,1.2533081]
[1752836986197,0.1707512,119160.0,119150.0,1.2533081]
[1752836986798,0.1782312,119160.0,119150.0,1.2533081]
[1752836986997,0.01048,119160.0,119150.0,1.2533081]
[1752836988896,0.01048,119160.0,119150.0,1.3007929]
[1752836989499,0.1782312,119160.0,119150.0,1.3007929]
[1752836989701,0.2264412,119160.0,119150.0,1.3007929]
[1752836990802,0.2620512,119160.0,119150.0,1.3007929]
[1752836992699,0.05869,119160.0,119150.0,1.7286743]
[1752836992901,0.1782312,119160.0,119150.0,1.25322247]
[1752836993604,0.01048,119160.0,119150.0,1.25322247]
[1752836993802,0.1782312,119160.0,119150.0,1.25322247]
[1752836994104,0.01048,119160.0,119150.0,1.25322247]
[1752836994605,0.003,119160.0,119150.0,1.25322247]
[1752836998703,0.05604,119180.0,119170.0,0.2460177]
[1752836998908,0.2237636,119180.0,119170.0,1.21284867]
[1752836999807,0.2277636,119180.0,119170.0,1.21284867]
[1752837000113,0.2307636,119180.0,119170.0,1.21284867]
[1752837000904,0.01428,119180.0,119170.0,1.21284867]
[1752837001710,0.1820031,119180.0,119170.0,1.21284867]
[1752837001909,0.1820031,119180.0,119170.0,1.28080807]
[1752837002103,0.2307631,119180.0,119170.0,0.90904454]
[1752837002409,0.06304,119180.0,119170.0,1.22139611]
[1752837002610,0.230763,119180.0,119170.0,1.22139611]
[1752837003104,0.007,119180.0,119170.0,0.84108514]
[1752837003309,0.007,119180.0,119170.0,1.22139611]
[1752837003715,0.007,119180.0,119170.0,0.84108514]
[1752837003908,0.007,119180.0,119170.0,1.22139611]
[1752837004812,0.1820031,119180.0,119170.0,1.22139611]
[1752837005004,0.01428,119180.0,119170.0,1.22139611]
[1752837005209,0.03822,119180.0,119170.0,1.24391976]
[1752837006608,0.007,119180.0,119170.0,1.24391976]
[1752837007109,0.007,119180.0,119170.0,1.31178236]
[1752837009215,0.007,119180.0,119170.0,0.93147139]
[1752837009414,0.007,119180.0,119170.0,1.31178236]
[1752837009917,0.1677214,119190.0,119180.0,0.1995731]
[1752837010111,0.1677214,119190.0,119180.0,0.63821298]
[1752837010310,0.2237614,119190.0,119180.0,0.63821298]
[1752837010614,0.2439114,119190.0,119180.0,0.63821298]
[1752837010808,0.2595114,119190.0,119180.0,0.63821298]
[1752837011006,0.2595114,119190.0,119180.0,0.25790211]
[1752837011207,0.2625114,119190.0,119180.0,1.22629308]
[1752837011715,0.2655114,119190.0,119180.0,1.22629308]
[1752837012015,0.2655114,119190.0,119180.0,0.84598211]
[1752837013718,0.2655114,119190.0,119180.0,1.22629308]
[1752837015716,0.2655114,119190.0,119180.0,0.84598211]
[1752837016420,0.2655114,119190.0,119180.0,0.67825891]
[1752837016618,0.2655114,119190.0,119180.0,0.84598231]
[1752837017610,0.64582237,119190.0,119180.0,0.63661891]
[1752837019121,0.64582237,119190.0,119180.0,0.01696891]
[1752837020620,0.70616438,119190.0,119180.0,0.01696891]
[1752837022424,1.29376438,119190.0,119180.0,0.01696891]
[1752837023621,1.23342237,119190.0,119180.0,0.01696891]
[1752837025425,0.64582237,119190.0,119180.0,0.01696891]
[1752837025626,1.23278237,119190.0,119180.0,0.01696891]
[1752837027325,0.64582237,119190.0,119180.0,0.01696891]
[1752837027631,1.23278237,119190.0,119180.0,0.01696891]
[1752837028131,0.64582237,119190.0,119180.0,0.01696891]
[1752837028431,1.23258237,119190.0,119180.0,0.01696891]
[1752837031729,1.29292438,119190.0,119180.0,0.01696891]
[1752837033029,1.23258237,119190.0,119180.0,0.01696891]
[1752837033330,0.8522714,119190.0,119180.0,0.01696891]
[1752837033532,1.23258237,119190.0,119180.0,0.01696891]
[1752837036234,0.8522714,119190.0,119180.0,0.01696891]
[1752837036434,1.23258237,119190.0,119180.0,0.01696891]
[1752837040836,1.29292438,119190.0,119180.0,0.01696891]
[1752837042835,1.23258237,119190.0,119180.0,0.01696891]
[1752837043237,1.29292438,119190.0,119180.0,0.01696891]
[1752837043434,1.23258237,119190.0,119180.0,0.01696891]
[1752837043637,1.29292438,119190.0,119180.0,0.01696891]
[1752837047042,1.76842385,119190.0,119180.0,0.01696891]
[1752837052047,1.70808184,119190.0,119180.0,0.01696891]
[1752837053949,1.76849628,119190.0,119180.0,0.01696891]
[1752837054550,1.70808184,119190.0,119180.0,0.01696891]
[1752837056051,1.7685045,119190.0,119180.0,0.01696891]
[1752837057351,1.70808184,119190.0,119180.0,0.01696891]
[1752837058151,1.76850884,119190.0,119180.0,0.01696891]
[1752837059959,1.70808184,119190.0,119180.0,0.01696891]
[1752837060256,1.76851533,119190.0,119180.0,0.01696891]
[1752837061658,1.89851533,119190.0,119180.0,0.01696891]
[1752837062958,1.83808184,119190.0,119180.0,0.01023017]
[1752837063757,1.91345161,119190.0,119180.0,0.01023017]
[1752837068458,1.05764117,119190.0,119180.0,0.01023017]
[1752837068658,1.91345161,119190.0,119180.0,0.01023017]
[1752837073765,1.83808184,119190.0,119180.0,0.01023017]
[1752837074466,1.89850336,119190.0,119180.0,0.01023017]
[1752837078068,1.04269292,119190.0,119180.0,0.01023017]
[1752837078272,1.89850336,119190.0,119180.0,0.01023017]
[1752837081279,1.83808184,119190.0,119180.0,0.01023017]
[1752837081571,0.2512611,119160.0,119150.0,0.09555887]
[1752837081869,1.11430154,119160.0,119150.0,0.05416901]
[1752837082975,1.12255715,119160.0,119150.0,0.05416901]
[1752837084278,1.12255715,119160.0,119150.0,0.05516901]
[1752837085279,1.12255715,119160.0,119150.0,0.05416901]
[1752837085577,0.69465193,119160.0,119150.0,0.05416901]
[1752837085975,0.69565193,119160.0,119150.0,0.05416901]
[1752837086575,0.69565193,119160.0,119150.0,0.02296901]
[1752837087175,1.12355715,119160.0,119150.0,0.02296901]
[1752837087377,0.2585052,119150.0,119140.0,0.6452889]
[1752837087682,0.68641042,119150.0,119140.0,0.66823959]
[1752837088786,0.2585052,119150.0,119140.0,0.66823959]
[1752837088978,0.68641042,119150.0,119140.0,0.69273959]
[1752837089180,0.68641042,119150.0,119140.0,0.71028959]
[1752837089480,0.2585052,119150.0,119140.0,0.71028959]
[1752837090186,0.68641042,119150.0,119140.0,0.71028959]
[1752837090577,0.2585052,119150.0,119140.0,0.71028959]
[1752837091981,0.2585052,119150.0,119140.0,0.28238437]
[1752837092181,0.2585052,119150.0,119140.0,0.71028959]
[1752837092377,0.68641042,119150.0,119140.0,0.71028959]
[1752837094881,0.68641042,119150.0,119140.0,0.28238437]
[1752837095081,0.68641042,119150.0,119140.0,0.71028959]
[1752837097581,0.68641042,119150.0,119140.0,0.09705507]
[1752837097886,0.68641042,119150.0,119140.0,0.05698507]
[1752837098286,0.68641042,119150.0,119140.0,0.04122507]
[1752837099087,0.70491408,119150.0,119140.0,0.04122507]
[1752837099486,0.70491408,119150.0,119140.0,0.01827438]
[1752837099680,0.27700886,119150.0,119140.0,0.001]
[1752837099878,0.70491408,119150.0,119140.0,0.001]
[1752837105982,0.27700886,119150.0,119140.0,0.001]
[1752837106189,0.70491408,119150.0,119140.0,0.001]
[1752837112495,0.80491408,119150.0,119140.0,0.001]
[1752837112695,0.70491408,119150.0,119140.0,0.001]
[1752837113700,0.7653366,119150.0,119140.0,0.001]
[1752837116598,0.2267833,119130.0,119120.0,0.65581]
[1752837116897,0.68476852,119130.0,119120.0,1.27496161]
[1752837117698,0.68476852,119130.0,119120.0,0.84705639]
[1752837117998,0.68476852,119130.0,119120.0,1.27796161]
[1752837118199,0.68476852,119130.0,119120.0,0.85005639]
[1752837118400,0.68476852,119130.0,119120.0,1.27796161]
[1752837119397,0.68476852,119130.0,119120.0,0.68224909]
[1752837119598,0.68476852,119130.0,119120.0,1.27796161]
[1752837120100,0.68476852,119130.0,119120.0,1.27896161]
[1752837120296,0.68476852,119130.0,119120.0,1.25552252]
[1752837120803,0.68476852,119130.0,119120.0,1.11115686]
[1752837121097,0.68476852,119130.0,119120.0,1.09436686]
[1752837121500,0.68476852,119130.0,119120.0,0.05952164]
[1752837121702,0.68476852,119130.0,119120.0,0.004]
[1752837121895,1.11267374,119130.0,119120.0,0.02748812]
[1752837122203,1.11267374,119130.0,119120.0,0.02749212]
[1752837122402,1.11267374,119130.0,119120.0,0.004]
[1752837122900,1.13157772,119130.0,119120.0,0.004]
[1752837123604,0.27576728,119130.0,119120.0,0.004]
[1752837123803,1.13157772,119130.0,119120.0,0.004]
[1752837124700,0.7036725,119130.0,119120.0,0.43190522]
[1752837124899,0.86032728,119130.0,119120.0,0.63179252]
[1752837125098,0.86020728,119130.0,119120.0,0.63179252]
[1752837125305,0.7036725,119130.0,119120.0,0.63179252]
[1752837125509,1.2881125,119130.0,119120.0,0.63179252]
[1752837125709,1.2881125,119130.0,119120.0,0.46398522]
[1752837125910,1.2881125,119130.0,119120.0,0.03608]
[1752837127514,1.2881125,119130.0,119120.0,0.004]
[1752837131615,1.2881125,119130.0,119120.0,0.43190522]
[1752837132218,1.2881125,119130.0,119120.0,0.004]
[1752837132717,1.71601772,119130.0,119120.0,0.004]
[1752837132917,1.2881125,119130.0,119120.0,0.004]
[1752837133116,1.71601772,119130.0,119120.0,0.004]
[1752837134217,0.86020728,119130.0,119120.0,0.004]
[1752837134417,0.86020728,119130.0,119120.0,0.43190522]
[1752837134618,1.2881125,119130.0,119120.0,0.43190522]
[1752837134920,0.86020728,119130.0,119120.0,0.43190522]
[1752837135115,1.2881125,119130.0,119120.0,0.43190522]
[1752837135417,1.2881125,119130.0,119120.0,0.004]
[1752837137519,1.2965125,119130.0,119120.0,0.004]
[1752837138721,0.86860728,119130.0,119120.0,0.004]
[1752837138921,1.2965125,119130.0,119120.0,0.004]
[1752837140920,0.86860728,119130.0,119120.0,0.004]
[1752837141120,1.2965125,119130.0,119120.0,0.004]
[1752837142717,0.86860728,119130.0,119120.0,0.004]
[1752837142921,1.72441772,119130.0,119120.0,0.004]
[1752837144524,0.86860728,119130.0,119120.0,0.004]
[1752837144722,1.2965125,119130.0,119120.0,0.004]
[1752837145321,1.2955525,119130.0,119120.0,0.004]
[1752837148819,0.86764728,119130.0,119120.0,0.004]
[1752837149024,1.2955525,119130.0,119120.0,0.004]
[1752837149825,0.86764728,119130.0,119120.0,0.004]
[1752837150024,1.2955525,119130.0,119120.0,0.004]
[1752837152226,0.86764728,119130.0,119120.0,0.004]
[1752837152621,1.2955525,119130.0,119120.0,0.004]
[1752837153127,0.86764728,119130.0,119120.0,0.004]
[1752837153327,1.2955525,119130.0,119120.0,0.004]
[1752837153724,1.35597502,119130.0,119120.0,0.004]
[1752837154027,1.78388024,119130.0,119120.0,0.004]
[1752837155732,0.2020913,119110.0,119100.0,0.59582542]
[1752837156030,0.68446652,119110.0,119100.0,1.18614542]
[1752837156230,0.68446652,119110.0,119100.0,0.59582542]
[1752837156437,0.68446652,119110.0,119100.0,1.21845542]
[1752837157035,0.68446652,119110.0,119100.0,1.22545542]
[1752837157430,0.68446652,119110.0,119100.0,0.2072702]
[1752837157628,0.68446652,119110.0,119100.0,0.207271]
[1752837157836,0.69284214,119110.0,119100.0,0.0070857]
[1752837158040,1.30167231,119110.0,119100.0,0.007]
[1752837158234,1.30167231,119110.0,119100.0,0.01]
[1752837159238,1.72957753,119110.0,119100.0,0.01]
[1752837159536,1.30167231,119110.0,119100.0,0.01]
[1752837160031,1.28300214,119110.0,119100.0,0.01]
[1752837160237,1.28336214,119110.0,119100.0,0.01]
[1752837160439,0.69284214,119110.0,119100.0,0.01]
[1752837160629,0.26493692,119110.0,119100.0,0.63809062]
[1752837160834,0.91607944,119110.0,119100.0,0.2136654]
[1752837161131,1.34398466,119110.0,119100.0,0.64157062]
[1752837161339,1.28356214,119110.0,119100.0,0.64157062]
[1752837161533,0.69284214,119110.0,119100.0,0.64157062]
[1752837161735,1.28352214,119110.0,119100.0,0.47373522]
[1752837161932,1.28352214,119110.0,119100.0,0.01]
[1752837162136,1.28352214,119110.0,119100.0,0.43790522]
[1752837162635,1.28352214,119110.0,119100.0,0.01]
[1752837163042,1.23640354,119110.0,119100.0,0.01]
[1752837164342,1.25500898,119110.0,119100.0,0.01]
[1752837166940,0.87422236,119110.0,119100.0,0.01]
[1752837167140,1.25500898,119110.0,119100.0,0.01]
[1752837167342,0.87422236,119110.0,119100.0,0.01]
[1752837167645,1.25500898,119110.0,119100.0,0.01]
[1752837171146,0.85561692,119110.0,119100.0,0.01]
[1752837171447,1.23640354,119110.0,119100.0,0.01]
[1752837172045,0.85561692,119110.0,119100.0,0.01]
[1752837172245,1.23640354,119110.0,119100.0,0.01]
[1752837173249,0.64572354,119110.0,119100.0,0.01]
[1752837173442,1.23628354,119110.0,119100.0,0.01]
[1752837173842,0.85549692,119110.0,119100.0,0.2094654]
[1752837174144,0.2565613,119110.0,119100.0,0.63553202]
[1752837174344,0.2565613,119110.0,119100.0,0.63771202]
[1752837175147,0.2565613,119110.0,119100.0,0.63553202]
[1752837175747,0.2565613,119110.0,119100.0,0.2371954]
[1752837176050,0.2222913,119110.0,119100.0,1.22819202]
[1752837176245,0.2578013,119110.0,119100.0,1.22819202]
[1752837176748,0.2578013,119110.0,119100.0,0.8474054]
[1752837176947,0.2578013,119110.0,119100.0,0.2129053]
[1752837177148,0.2578013,119110.0,119100.0,0.8031053]
[1752837177545,0.2578013,119110.0,119100.0,0.8032253]
[1752837177749,0.63858792,119110.0,119100.0,0.63539]
[1752837177949,0.63858792,119110.0,119100.0,0.8032253]
[1752837178150,0.2578013,119110.0,119100.0,0.8032254]
[1752837178347,0.2578013,119110.0,119100.0,0.63539]
[1752837178551,0.63858792,119110.0,119100.0,0.8032254]
[1752837179550,0.63858792,119110.0,119100.0,0.2129054]
[1752837179952,0.63858792,119110.0,119100.0,0.04507]
[1752837180251,0.63858792,119110.0,119100.0,0.59804]
[1752837180452,0.2578013,119110.0,119100.0,0.59804]
[1752837180652,0.63858792,119110.0,119100.0,0.008]
[1752837181553,0.63858792,119110.0,119100.0,0.001]
[1752837181750,0.63858792,119110.0,119100.0,0.002]
[1752837184351,1.22826792,119110.0,119100.0,0.002]
[1752837186452,0.8474813,119110.0,119100.0,0.002]
[1752837186652,1.22826792,119110.0,119100.0,0.002]
[1752837187547,1.22774792,119110.0,119100.0,0.002]
[1752837187752,1.22770792,119110.0,119100.0,0.002]
[1752837188145,0.90734382,119110.0,119100.0,0.002]
[1752837188344,1.22770792,119110.0,119100.0,0.002]
[1752837189450,0.63858792,119110.0,119100.0,0.002]
[1752837189756,1.22770792,119110.0,119100.0,0.002]
[1752837190055,1.24636535,119110.0,119100.0,0.002]
[1752837190555,0.65724535,119110.0,119100.0,0.002]
[1752837190756,1.24596535,119110.0,119100.0,0.002]
[1752837191254,0.27645873,119110.0,119100.0,0.002]
[1752837191457,1.24604535,119110.0,119100.0,0.002]
[1752837191857,0.8466013,119110.0,119100.0,0.002]
[1752837192054,1.22738792,119110.0,119100.0,0.002]
[1752837195556,0.63858792,119110.0,119100.0,0.002]
[1752837196255,0.2578013,119110.0,119100.0,0.03702]
[1752837198562,0.2578013,119110.0,119100.0,0.03363]
[1752837199265,0.2578013,119110.0,119100.0,0.002]
[1752837199562,0.63858792,119110.0,119100.0,0.002]
[1752837201463,0.2578013,119110.0,119100.0,0.002]
[1752837201762,0.63858792,119110.0,119100.0,0.002]
[1752837202260,0.63858792,119110.0,119100.0,0.01814]
[1752837202459,0.2578013,119110.0,119100.0,0.03363]
[1752837202762,0.63858792,119110.0,119100.0,0.03363]
[1752837203162,0.2578013,119110.0,119100.0,0.03363]
[1752837203461,0.2578013,119110.0,119100.0,0.03702]
[1752837203663,0.2578013,119110.0,119100.0,0.07792]
[1752837204062,0.2578013,119110.0,119100.0,0.2457554]
[1752837204263,0.2578013,119110.0,119100.0,0.2282054]
[1752837204763,0.2578013,119110.0,119100.0,0.2457554]
[1752837204965,0.2578013,119110.0,119100.0,0.2476954]
[1752837205264,0.2578013,119110.0,119100.0,0.62848202]
[1752837205664,0.2578013,119110.0,119100.0,0.2476954]
[1752837205964,0.2578013,119110.0,119100.0,1.21780202]
[1752837206466,0.2578013,119110.0,119100.0,0.8370154]
[1752837206669,0.2578013,119110.0,119100.0,1.21780202]
[1752837206965,0.2414713,119110.0,119100.0,1.21780202]
[1752837209767,0.2565113,119110.0,119100.0,1.21780202]
[1752837210264,0.2414713,119110.0,119100.0,1.21780202]
[1752837210768,0.2222913,119110.0,119100.0,1.21780202]
[1752837212365,0.2413813,119110.0,119100.0,1.21780202]
[1752837213670,0.2564213,119110.0,119100.0,1.21780202]
[1752837214163,0.2564213,119110.0,119100.0,0.8370154]
[1752837214368,0.2564213,119110.0,119100.0,1.21780202]
[1752837215164,0.2564213,119110.0,119100.0,0.2048554]
[1752837215470,0.2564213,119110.0,119100.0,0.7901449]
[1752837218269,0.2564213,119110.0,119100.0,0.7932449]
[1752837221870,0.2564213,119110.0,119100.0,0.793245]
[1752837223469,0.2564213,119110.0,119100.0,0.816595]
[1752837223872,0.2564213,119110.0,119100.0,1.21493162]
[1752837227874,0.2564213,119110.0,119100.0,0.834145]
[1752837228172,0.2564213,119110.0,119100.0,1.21493162]
[1752837234077,0.2564213,119110.0,119100.0,0.834145]
[1752837236485,0.2564213,119110.0,119100.0,0.85672415]
[1752837236684,0.2564213,119110.0,119100.0,0.834145]
[1752837237384,0.2564213,119110.0,119100.0,0.85672415]
[1752837238084,0.2564213,119110.0,119100.0,0.834145]
[1752837240786,0.2564213,119110.0,119100.0,0.85672415]
[1752837240987,0.2564213,119110.0,119100.0,1.23751077]
[1752837241286,0.2564213,119110.0,119100.0,1.21663162]
[1752837242888,0.2564213,119110.0,119100.0,0.835845]
[1752837243191,0.68474432,119110.0,119100.0,1.26416802]
[1752837243492,0.2564213,119110.0,119100.0,1.26416802]
[1752837243791,0.68474432,119110.0,119100.0,1.28674717]
[1752837244690,0.2564213,119110.0,119100.0,1.28674717]
[1752837245893,0.2564213,119110.0,119100.0,1.71507019]
[1752837247188,0.2564213,119110.0,119100.0,1.73220099]
[1752837248492,0.2564213,119110.0,119100.0,0.87555495]
[1752837248698,0.2564213,119110.0,119100.0,1.30387797]
[1752837250097,0.2564213,119110.0,119100.0,0.87555495]
[1752837250300,0.2564213,119110.0,119100.0,1.30387797]
[1752837250492,0.2564213,119110.0,119100.0,0.87555495]
[1752837250799,0.68474432,119110.0,119100.0,1.30217797]
[1752837251799,0.68474432,119110.0,119100.0,1.13434297]
[1752837252407,0.68474432,119110.0,119100.0,0.54566297]
[1752837252705,0.68474432,119110.0,119100.0,1.06674382]
[1752837252903,0.68474432,119110.0,119100.0,0.65821995]
[1752837253702,0.2564213,119110.0,119100.0,0.65821995]
[1752837254001,0.68474432,119110.0,119100.0,0.65821995]
[1752837254904,0.63722041,119110.0,119100.0,0.65821995]
[1752837255594,0.2564213,119110.0,119100.0,0.66073995]
[1752837258104,0.2564213,119110.0,119100.0,0.6381608]
[1752837259009,0.2564213,119110.0,119100.0,0.6624508]
[1752837260107,0.2564213,119110.0,119100.0,0.6381608]
[1752837260908,0.63722041,119110.0,119100.0,0.6381608]
[1752837261907,0.63722041,119110.0,119100.0,0.6607708]
[1752837263609,0.2564213,119110.0,119100.0,0.6607708]
[1752837267807,0.2564213,119110.0,119100.0,0.6381608]
[1752837268110,0.63722041,119110.0,119100.0,0.6381608]
[1752837268903,0.63722041,119110.0,119100.0,0.0191308]
[1752837268904,0.78556755,119110.0,119100.0,0.0191308]
[1752837270111,0.167849,119090.0,119080.0,0.67112355]
[1752837270305,0.63743811,119090.0,119080.0,0.66382937]
[1752837271110,0.63743811,119090.0,119080.0,0.07966937]
[1752837271307,0.63743811,119090.0,119080.0,0.08466937]
[1752837271814,0.63743811,119090.0,119080.0,0.08766937]
[1752837272009,0.70346079,119090.0,119080.0,0.08766937]
[1752837272813,0.71176081,119090.0,119080.0,0.08766937]
[1752837273110,0.71176081,119090.0,119080.0,0.06508]
[1752837274213,0.7308217,119090.0,119080.0,0.06508]
[1752837274416,0.7308217,119090.0,119080.0,0.04247]
[1752837276918,0.7785765,119090.0,119080.0,0.04247]
[1752837279311,0.7785765,119090.0,119080.0,0.04012]
[1752837280116,0.7785765,119090.0,119080.0,0.008]
[1752837281417,0.9085765,119090.0,119080.0,0.005]
[1752837281613,0.9085765,119090.0,119080.0,0.002]
[1752837281818,0.9085765,119090.0,119080.0,0.003]
[1752837288619,0.48002259,119090.0,119080.0,0.003]
[1752837288826,0.9085765,119090.0,119080.0,0.003]
[1752837290226,0.48002259,119090.0,119080.0,0.003]
[1752837290426,0.9085765,119090.0,119080.0,0.003]
[1752837301537,0.7785765,119090.0,119080.0,0.48817391]
[1752837301733,1.3615765,119090.0,119080.0,0.48817391]
[1752837301939,1.3615765,119090.0,119080.0,0.46392391]
[1752837302239,1.3615765,119090.0,119080.0,0.03537]
[1752837302438,1.3615765,119090.0,119080.0,0.46392391]
[1752837302737,1.3615765,119090.0,119080.0,0.03537]
[1752837302940,1.3615765,119090.0,119080.0,0.003]
[1752837304939,1.4715765,119090.0,119080.0,0.003]
[1752837305541,1.04302259,119090.0,119080.0,0.003]
[1752837305736,0.93286259,119090.0,119080.0,0.003]
[1752837305941,1.3614165,119090.0,119080.0,0.003]
[1752837306844,0.93286259,119090.0,119080.0,0.003]
[1752837307043,1.3614165,119090.0,119080.0,0.003]